fUST/lending_fUST_20260531
["ID","MTS","AMOUNT","RATE_DAILY","PERIOD"]
[423560013,1780224641000,-432.7925016,9.041e-05,2]
[423560015,1780224641000,-202.83564674,9.041e-05,2]
[423560017,1780224641000,-500.0,9.041e-05,2]
[423560022,1780224641000,-500.0,9.041e-05,2]
[423560019,1780224641000,-500.0,9.041e-05,2]
[423560020,1780224641000,-500.0,9.041e-05,2]
[423560028,1780224641000,-500.0,9.041e-05,2]
[423560068,1780224641000,-500.0,9.041e-05,2]
[423560026,1780224641000,-500.0,9.041e-05,2]
[423560032,1780224641000,-500.0,9.041e-05,2]
[423560036,1780224641000,-500.0,9.041e-05,2]
[423560039,1780224641000,-500.0,9.041e-05,2]
[423560037,1780224641000,-500.0,9.041e-05,2]
[423560030,1780224641000,-500.0,9.041e-05,2]
[423560034,1780224641000,-500.0,9.041e-05,2]
[423560041,1780224641000,-500.0,9.041e-05,2]
[423560045,1780224641000,-500.0,9.041e-05,2]
[423560053,1780224641000,-500.0,9.041e-05,2]
[423560051,1780224641000,-637.03314019,9.041e-05,2]
[423560055,1780224641000,-821.69,9.041e-05,2]
[423560049,1780224641000,-500.0,9.041e-05,2]
[423560098,1780224641000,-500.0,9.041e-05,2]
[423560047,1780224641000,-238.64031516,9.041e-05,2]
[423560043,1780224641000,-500.0,9.041e-05,2]
[423560099,1780224641000,-500.0,9.041e-05,2]
[423560141,1780224641000,-500.0,9.315e-05,2]
[423560101,1780224641000,-500.0,9.041e-05,2]
[423560140,1780224641000,-516.25677923,9.315e-05,2]
[423560137,1780224641000,-500.0,9.315e-05,2]
[423560143,1780224641000,-500.0,9.315e-05,2]
[423560134,1780224641000,-500.0,9.315e-05,2]
[423560144,1780224641000,-500.0,9.315e-05,2]
[423560136,1780224641000,-500.0,9.315e-05,2]
[423560148,1780224641000,-500.0,9.315e-05,2]
[423560142,1780224641000,-500.0,9.315e-05,2]
[423560138,1780224641000,-500.0,9.315e-05,2]
[423560146,1780224641000,-500.0,9.315e-05,2]
[423560139,1780224641000,-500.0,9.315e-05,2]
[423560150,1780224641000,-500.0,9.315e-05,2]
[423560159,1780224641000,-609.97168117,9.315e-05,2]
[423560155,1780224641000,-353.76,9.315e-05,2]
[423560147,1780224641000,-500.0,9.315e-05,2]
[423560157,1780224641000,-500.0,9.315e-05,2]
[423560154,1780224641000,-500.0,9.315e-05,2]
[423560153,1780224641000,-500.0,9.315e-05,2]
[423560149,1780224641000,-500.0,9.315e-05,2]
[423560152,1780224641000,-500.0,9.315e-05,2]
[423560158,1780224641000,-605.77394327,9.315e-05,2]
[423560156,1780224641000,-500.0,9.315e-05,2]
[423560161,1780224641000,-555.56,9.315e-05,2]
[423560160,1780224641000,-500.0,9.315e-05,2]
[423560163,1780224641000,-500.0,9.315e-05,2]
[423560162,1780224641000,-500.0,9.315e-05,2]
[423560164,1780224641000,-500.0,9.315e-05,2]
[423560165,1780224641000,-500.0,9.315e-05,2]
[423560166,1780224641000,-1095.61549098,9.346e-05,2]
[423560100,1780224641000,-500.0,9.041e-05,2]
[423560151,1780224641000,-500.0,9.315e-05,2]
[423560145,1780224641000,-500.0,9.315e-05,2]
[423560167,1780224641000,-151.0,9.523e-05,2]
[423560123,1780224641000,-500.0,9.315e-05,2]
[423560103,1780224641000,-500.0,9.041e-05,2]
[423560102,1780224641000,-555.56,9.041e-05,2]
[423560104,1780224641000,-500.0,9.041e-05,2]
[423560111,1780224641000,-500.0,9.315e-05,2]
[423560114,1780224641000,-500.0,9.315e-05,2]
[423560108,1780224641000,-500.0,9.315e-05,2]
[423560113,1780224641000,-500.0,9.315e-05,2]
[423560109,1780224641000,-500.0,9.315e-05,2]
[423560135,1780224641000,-500.0,9.315e-05,2]
[423560112,1780224641000,-500.0,9.315e-05,2]
[423560117,1780224641000,-500.0,9.315e-05,2]
[423560107,1780224641000,-10000.0,9.123e-05,2]
[423560119,1780224641000,-500.0,9.315e-05,2]
[423560118,1780224641000,-500.0,9.315e-05,2]
[423560116,1780224641000,-255.96992707,9.315e-05,2]
[423560106,1780224641000,-500.0,9.041e-05,2]
[423560115,1780224641000,-500.0,9.315e-05,2]
[423560130,1780224641000,-500.0,9.315e-05,2]
[423560110,1780224641000,-2944.0463,9.315e-05,2]
[423560127,1780224641000,-422.69785005,9.315e-05,2]
[423560126,1780224641000,-500.0,9.315e-05,2]
[423560128,1780224641000,-500.0,9.315e-05,2]
[423560124,1780224641000,-500.0,9.315e-05,2]
[423560129,1780224641000,-500.0,9.315e-05,2]
[423560133,1780224641000,-500.0,9.315e-05,2]
[423560120,1780224641000,-500.0,9.315e-05,2]
[423560122,1780224641000,-500.0,9.315e-05,2]
[423560132,1780224641000,-501.58985474,9.315e-05,2]
[423560131,1780224641000,-821.69,9.315e-05,2]
[423560121,1780224641000,-500.0,9.315e-05,2]
[423560125,1780224641000,-246.75770995,9.315e-05,2]
[423560206,1780224642000,-500.0,9.589e-05,2]
[423560216,1780224642000,-500.0,9.589e-05,2]
[423560212,1780224642000,-500.0,9.589e-05,2]
[423560210,1780224642000,-404.20686388,9.589e-05,2]
[423560207,1780224642000,-821.69,9.589e-05,2]
[423560203,1780224642000,-500.0,9.589e-05,2]
[423560200,1780224642000,-500.0,9.589e-05,2]
[423560205,1780224642000,-500.0,9.589e-05,2]
[423560201,1780224642000,-500.0,9.589e-05,2]
[423560199,1780224642000,-500.0,9.589e-05,2]
[423560202,1780224642000,-500.0,9.589e-05,2]
[423560204,1780224642000,-500.0,9.589e-05,2]
[423560219,1780224642000,-500.0,9.589e-05,2]
[423560235,1780224642000,-500.0,9.863e-05,2]
[423560217,1780224642000,-500.0,9.589e-05,2]
[423560222,1780224642000,-500.0,9.589e-05,2]
[423560215,1780224642000,-500.0,9.589e-05,2]
[423560213,1780224642000,-500.0,9.589e-05,2]
[423560218,1780224642000,-500.0,9.589e-05,2]
[423560220,1780224642000,-348.12,9.589e-05,2]
[423560221,1780224642000,-500.0,9.589e-05,2]
[423560223,1780224642000,-500.0,9.589e-05,2]
[423560214,1780224642000,-500.0,9.589e-05,2]
[423560225,1780224642000,-500.0,9.589e-05,2]
[423560228,1780224642000,-500.0,9.589e-05,2]
[423560224,1780224642000,-249.03585224,9.589e-05,2]
[423560226,1780224642000,-500.0,9.589e-05,2]
[423560197,1780224642000,-500.0,9.589e-05,2]
[423560211,1780224642000,-511.38446874,9.589e-05,2]
[423560209,1780224642000,-500.0,9.589e-05,2]
[423560182,1780224642000,-151.0,9.523e-05,2]
[423560208,1780224642000,-500.0,9.589e-05,2]
[423560227,1780224642000,-555.56,9.589e-05,2]
[423560170,1780224642000,-151.0,9.523e-05,2]
[423560168,1780224642000,-151.0,9.523e-05,2]
[423560169,1780224642000,-151.0,9.523e-05,2]
[423560171,1780224642000,-151.0,9.523e-05,2]
[423560173,1780224642000,-151.0,9.523e-05,2]
[423560174,1780224642000,-151.0,9.523e-05,2]
[423560175,1780224642000,-151.0,9.523e-05,2]
[423560180,1780224642000,-151.0,9.523e-05,2]
[423560176,1780224642000,-151.0,9.523e-05,2]
[423560179,1780224642000,-151.0,9.523e-05,2]
[423560181,1780224642000,-151.0,9.523e-05,2]
[423560177,1780224642000,-151.0,9.523e-05,2]
[423560183,1780224642000,-151.0,9.523e-05,2]
[423560178,1780224642000,-151.0,9.523e-05,2]
[423560172,1780224642000,-151.0,9.523e-05,2]
[423560184,1780224642000,-151.0,9.523e-05,2]
[423560186,1780224642000,-151.0,9.523e-05,2]
[423560196,1780224642000,-500.0,9.589e-05,2]
[423560195,1780224642000,-351.07246501,9.589e-05,2]
[423560189,1780224642000,-2944.0463,9.589e-05,2]
[423560185,1780224642000,-151.0,9.523e-05,2]
[423560188,1780224642000,-500.0,9.589e-05,2]
[423560187,1780224642000,-500.0,9.589e-05,2]
[423560190,1780224642000,-500.0,9.589e-05,2]
[423560193,1780224642000,-500.0,9.589e-05,2]
[423560191,1780224642000,-500.0,9.589e-05,2]
[423560194,1780224642000,-500.0,9.589e-05,2]
[423560192,1780224642000,-159.65490597,9.589e-05,2]
[423560198,1780224642000,-500.0,9.589e-05,2]
[423560236,1780224642000,-252.50841967,9.863e-05,2]
[423560234,1780224642000,-500.0,9.863e-05,2]
[423560230,1780224642000,-500.0,9.589e-05,2]
[423560271,1780224642000,-262.34422952,0.000101,2]
[423560269,1780224642000,-164.89712873,0.000101,2]
[423560265,1780224642000,-500.0,9.863e-05,2]
[423560267,1780224642000,-639.11772806,9.95e-05,2]
[423560274,1780224642000,-160.0,0.00010119,2]
[423560270,1780224642000,-164.12461024,0.000101,2]
[423560272,1780224642000,-160.0,0.00010119,2]
[423560266,1780224642000,-500.0,9.863e-05,2]
[423560286,1780224642000,-500.0,0.00010136,2]
[423560278,1780224642000,-597.01915611,0.00010124,2]
[423560277,1780224642000,-767.37531181,0.00010119,2]
[423560287,1780224642000,-500.0,0.00010136,2]
[423560275,1780224642000,-160.0,0.00010119,2]
[423560289,1780224642000,-500.0,0.00010136,2]
[423560279,1780224642000,-500.0,0.00010136,2]
[423560280,1780224642000,-500.0,0.00010136,2]
[423560281,1780224642000,-500.0,0.00010136,2]
[423560282,1780224642000,-500.0,0.00010136,2]
[423560284,1780224642000,-500.0,0.00010136,2]
[423560285,1780224642000,-255.59003075,0.00010136,2]
[423560283,1780224642000,-500.0,0.00010136,2]
[423560292,1780224642000,-500.0,0.00010136,2]
[423560290,1780224642000,-500.0,0.00010136,2]
[423560291,1780224642000,-821.69,0.00010136,2]
[423560296,1780224642000,-500.0,0.00010136,2]
[423560294,1780224642000,-500.0,0.00010136,2]
[423560231,1780224642000,-500.0,9.589e-05,2]
[423560297,1780224642000,-500.0,0.00010136,2]
[423560295,1780224642000,-500.0,0.00010136,2]
[423560268,1780224642000,-160.0,0.0001,2]
[423560264,1780224642000,-500.0,9.863e-05,2]
[423560293,1780224642000,-500.0,0.00010136,2]
[423560273,1780224642000,-160.0,0.00010119,2]
[423560229,1780224642000,-500.0,9.589e-05,2]
[423560233,1780224642000,-1000.0,9.726e-05,2]
[423560232,1780224642000,-906.50617634,9.715e-05,2]
[423560237,1780224642000,-500.0,9.863e-05,2]
[423560239,1780224642000,-500.0,9.863e-05,2]
[423560240,1780224642000,-303.23061934,9.863e-05,2]
[423560241,1780224642000,-500.0,9.863e-05,2]
[423560238,1780224642000,-500.0,9.863e-05,2]
[423560262,1780224642000,-500.0,9.863e-05,2]
[423560248,1780224642000,-500.0,9.863e-05,2]
[423560246,1780224642000,-366.81751904,9.863e-05,2]
[423560249,1780224642000,-500.0,9.863e-05,2]
[423560244,1780224642000,-500.0,9.863e-05,2]
[423560243,1780224642000,-500.0,9.863e-05,2]
[423560242,1780224642000,-500.0,9.863e-05,2]
[423560245,1780224642000,-500.0,9.863e-05,2]
[423560247,1780224642000,-500.0,9.863e-05,2]
[423560260,1780224642000,-500.0,9.863e-05,2]
[423560255,1780224642000,-380.67,9.863e-05,2]
[423560257,1780224642000,-500.0,9.863e-05,2]
[423560259,1780224642000,-500.0,9.863e-05,2]
[423560256,1780224642000,-500.0,9.863e-05,2]
[423560263,1780224642000,-555.56,9.863e-05,2]
[423560258,1780224642000,-500.0,9.863e-05,2]
[423560253,1780224642000,-500.0,9.863e-05,2]
[423560252,1780224642000,-546.49,9.863e-05,2]
[423560261,1780224642000,-362.71243346,9.863e-05,2]
[423560250,1780224642000,-500.0,9.863e-05,2]
[423560251,1780224642000,-821.69,9.863e-05,2]
[423560254,1780224642000,-500.0,9.863e-05,2]
[423560341,1780224643000,-500.0,0.00010684,2]
[423560342,1780224643000,-500.0,0.00010684,2]
[423560338,1780224643000,-509.60396456,0.00010684,2]
[423560336,1780224643000,-500.0,0.00010684,2]
[423560337,1780224643000,-500.0,0.00010684,2]
[423560334,1780224643000,-500.0,0.00010684,2]
[423560331,1780224643000,-500.0,0.0001041,2]
[423560326,1780224643000,-500.0,0.0001041,2]
[423560332,1780224643000,-500.0,0.0001041,2]
[423560335,1780224643000,-236.0706516,0.00010684,2]
[423560333,1780224643000,-262.34422952,0.000105,2]
[423560343,1780224643000,-500.0,0.00010684,2]
[423560357,1780224643000,-821.69,0.00010958,2]
[423560340,1780224643000,-500.0,0.00010684,2]
[423560349,1780224643000,-500.0,0.00010684,2]
[423560347,1780224643000,-500.0,0.00010684,2]
[423560344,1780224643000,-500.0,0.00010684,2]
[423560345,1780224643000,-500.0,0.00010684,2]
[423560348,1780224643000,-555.56,0.00010684,2]
[423560346,1780224643000,-500.0,0.00010684,2]
[423560350,1780224643000,-500.0,0.00010684,2]
[423560352,1780224643000,-1000.0,0.00010698,2]
[423560362,1780224643000,-500.0,0.00010958,2]
[423560351,1780224643000,-500.0,0.00010684,2]
[423560363,1780224643000,-500.0,0.00010958,2]
[423560360,1780224643000,-500.0,0.00010958,2]
[423560330,1780224643000,-500.0,0.0001041,2]
[423560339,1780224643000,-821.69,0.00010684,2]
[423560327,1780224643000,-500.0,0.0001041,2]
[423560324,1780224643000,-500.0,0.0001041,2]
[423560329,1780224643000,-555.56,0.0001041,2]
[423560356,1780224643000,-257.68,0.00010958,2]
[423560303,1780224643000,-500.0,0.00010136,2]
[423560301,1780224643000,-500.0,0.00010136,2]
[423560300,1780224643000,-555.56,0.00010136,2]
[423560299,1780224643000,-500.0,0.00010136,2]
[423560302,1780224643000,-500.0,0.00010136,2]
[423560298,1780224643000,-500.0,0.00010136,2]
[423560305,1780224643000,-164.12461024,0.000102,2]
[423560304,1780224643000,-164.89712873,0.000102,2]
[423560306,1780224643000,-262.34422952,0.000102,2]
[423560307,1780224643000,-164.89712873,0.000103,2]
[423560310,1780224643000,-262.34422952,0.000104,2]
[423560312,1780224643000,-500.0,0.0001041,2]
[423560309,1780224643000,-262.34422952,0.000103,2]
[423560308,1780224643000,-164.12461024,0.000103,2]
[423560311,1780224643000,-598.01223545,0.0001041,2]
[423560314,1780224643000,-515.81,0.0001041,2]
[423560317,1780224643000,-177.31,0.0001041,2]
[423560313,1780224643000,-500.0,0.0001041,2]
[423560315,1780224643000,-500.0,0.0001041,2]
[423560318,1780224643000,-500.0,0.0001041,2]
[423560321,1780224643000,-500.0,0.0001041,2]
[423560319,1780224643000,-500.0,0.0001041,2]
[423560323,1780224643000,-500.0,0.0001041,2]
[423560322,1780224643000,-500.0,0.0001041,2]
[423560316,1780224643000,-622.33,0.0001041,2]
[423560320,1780224643000,-821.69,0.0001041,2]
[423560328,1780224643000,-500.0,0.0001041,2]
[423560354,1780224643000,-500.0,0.00010958,2]
[423560325,1780224643000,-500.0,0.0001041,2]
[423560358,1780224643000,-500.0,0.00010958,2]
[423560400,1780224643000,-238.17351876,0.00011506,2]
[423560392,1780224643000,-334.81,0.00011506,2]
[423560394,1780224643000,-500.0,0.00011506,2]
[423560396,1780224643000,-500.0,0.00011506,2]
[423560399,1780224643000,-500.0,0.00011506,2]
[423560398,1780224643000,-500.0,0.00011506,2]
[423560395,1780224643000,-500.0,0.00011506,2]
[423560397,1780224643000,-617.85,0.00011506,2]
[423560402,1780224643000,-221.32,0.00011506,2]
[423560413,1780224643000,-1414.0,0.00011782,2]
[423560412,1780224643000,-555.56,0.0001178,2]
[423560401,1780224643000,-555.56,0.00011506,2]
[423560403,1780224643000,-272.0,0.00011507,3]
[423560393,1780224643000,-821.69,0.00011506,2]
[423560405,1780224643000,-492.0,0.00011768,2]
[423560411,1780224643000,-500.0,0.0001178,2]
[423560408,1780224643000,-500.0,0.0001178,2]
[423560406,1780224643000,-821.69,0.0001178,2]
[423560410,1780224643000,-254.8,0.0001178,2]
[423560409,1780224643000,-500.0,0.0001178,2]
[423560415,1780224643000,-1836.0,0.00011782,2]
[423560414,1780224643000,-444.0,0.00011782,2]
[423560416,1780224643000,-187.0,0.00011782,2]
[423560417,1780224643000,-151.0,0.000118,2]
[423560419,1780224643000,-151.0,0.000118,2]
[423560420,1780224643000,-151.0,0.000118,2]
[423560418,1780224643000,-151.0,0.000118,2]
[423560353,1780224643000,-244.0,0.00010698,2]
[423560407,1780224643000,-500.0,0.0001178,2]
[423560390,1780224643000,-151.0,0.000114,2]
[423560404,1780224643000,-1000.0,0.00011768,2]
[423560389,1780224643000,-151.0,0.000114,2]
[423560359,1780224643000,-500.0,0.00010958,2]
[423560391,1780224643000,-151.0,0.000114,2]
[423560355,1780224643000,-500.0,0.00010958,2]
[423560361,1780224643000,-500.0,0.00010958,2]
[423560364,1780224643000,-500.0,0.00010958,2]
[423560369,1780224643000,-500.0,0.00010958,2]
[423560367,1780224643000,-487.26557393,0.00010958,2]
[423560368,1780224643000,-500.0,0.00010958,2]
[423560365,1780224643000,-500.0,0.00010958,2]
[423560371,1780224643000,-151.0,0.00011,2]
[423560373,1780224643000,-151.0,0.00011,2]
[423560370,1780224643000,-15000.0,0.00010959,2]
[423560375,1780224643000,-500.0,0.00011232,2]
[423560374,1780224643000,-151.0,0.00011,2]
[423560366,1780224643000,-555.56,0.00010958,2]
[423560388,1780224643000,-151.0,0.000114,2]
[423560386,1780224643000,-500.0,0.00011232,2]
[423560372,1780224643000,-151.0,0.00011,2]
[423560376,1780224643000,-821.69,0.00011232,2]
[423560380,1780224643000,-500.0,0.00011232,2]
[423560385,1780224643000,-555.56,0.00011232,2]
[423560379,1780224643000,-500.0,0.00011232,2]
[423560381,1780224643000,-500.0,0.00011232,2]
[423560382,1780224643000,-500.0,0.00011232,2]
[423560383,1780224643000,-154.95,0.00011232,2]
[423560384,1780224643000,-500.0,0.00011232,2]
[423560377,1780224643000,-500.0,0.00011232,2]
[423560387,1780224643000,-500.0,0.00011232,2]
[423560378,1780224643000,-500.0,0.00011232,2]
[423560466,1780224644000,-191.78001579,0.00013691,2]
[423560467,1780224644000,-151.63582347,0.00013691,2]
[423560462,1780224644000,-821.69,0.00013424,2]
[423560455,1780224644000,-821.69,0.0001315,2]
[423560456,1780224644000,-500.0,0.0001315,2]
[423560454,1780224644000,-151.0,0.000131,2]
[423560452,1780224644000,-151.0,0.00013,2]
[423560460,1780224644000,-151.0,0.000134,2]
[423560451,1780224644000,-151.0,0.00013,2]
[423560459,1780224644000,-151.0,0.000134,2]
[423560464,1780224644000,-555.56,0.00013424,2]
[423560453,1780224644000,-151.0,0.00013,2]
[423560465,1780224644000,-151.0,0.000135,2]
[423560478,1780224644000,-152.0,0.00013725,7]
[423560471,1780224644000,-151.0,0.00013699,2]
[423560473,1780224644000,-1000.0,0.00013699,2]
[423560463,1780224644000,-583.26,0.00013424,2]
[423560472,1780224644000,-218.12317,0.00013699,2]
[423560468,1780224644000,-185.73361912,0.00013691,2]
[423560469,1780224644000,-821.69,0.00013698,2]
[423560470,1780224644000,-555.56,0.00013698,2]
[423560475,1780224644000,-183.86089598,0.00013709,2]
[423560477,1780224644000,-152.0,0.00013725,7]
[423560476,1780224644000,-150.12206469,0.00013709,2]
[423560479,1780224644000,-152.0,0.00013733,7]
[423560486,1780224644000,-177.81455257,0.00013766,2]
[423560450,1780224644000,-791.0,0.00012945,2]
[423560474,1780224644000,-2000.0,0.00013699,7]
[423560458,1780224644000,-190.0,0.00013151,3]
[423560425,1780224644000,-500.0,0.00012054,2]
[423560457,1780224644000,-555.56,0.0001315,2]
[423560481,1780224644000,-152.21234161,0.00013766,2]
[423560426,1780224644000,-555.56,0.00012054,2]
[423560424,1780224644000,-500.0,0.00012054,2]
[423560421,1780224644000,-821.69,0.00012054,2]
[423560423,1780224644000,-500.0,0.00012054,2]
[423560422,1780224644000,-500.0,0.00012054,2]
[423560427,1780224644000,-151.0,0.000122,2]
[423560434,1780224644000,-500.0,0.00012328,2]
[423560435,1780224644000,-500.0,0.00012328,2]
[423560436,1780224644000,-555.56,0.00012328,2]
[423560438,1780224644000,-151.0,0.000126,2]
[423560437,1780224644000,-151.0,0.000126,2]
[423560440,1780224644000,-821.69,0.00012602,2]
[423560461,1780224644000,-151.0,0.000134,2]
[423560439,1780224644000,-151.0,0.000126,2]
[423560433,1780224644000,-505.1,0.00012328,2]
[423560428,1780224644000,-151.0,0.000122,2]
[423560430,1780224644000,-151.0,0.000123,2]
[423560431,1780224644000,-821.69,0.00012328,2]
[423560432,1780224644000,-500.0,0.00012328,2]
[423560442,1780224644000,-500.0,0.00012602,2]
[423560441,1780224644000,-500.0,0.00012602,2]
[423560443,1780224644000,-555.56,0.00012602,2]
[423560446,1780224644000,-344.84,0.00012876,2]
[423560444,1780224644000,-151.0,0.000127,2]
[423560445,1780224644000,-821.69,0.00012876,2]
[423560448,1780224644000,-555.56,0.00012876,2]
[423560449,1780224644000,-1000.0,0.00012945,2]
[423560429,1780224644000,-151.0,0.000122,2]
[423560482,1780224644000,-181.26204674,0.00013766,2]
[423560447,1780224644000,-500.0,0.00012876,2]
[423560484,1780224644000,-332.05468311,0.00013766,2]
[423560515,1780224644000,-151.0,0.000143,2]
[423560525,1780224644000,-664.10936622,0.00014465,2]
[423560517,1780224644000,-303.27164694,0.00014388,2]
[423560518,1780224644000,-371.46723824,0.00014388,2]
[423560524,1780224644000,-409.66739354,0.00014465,2]
[423560520,1780224644000,-367.72179196,0.00014406,2]
[423560521,1780224644000,-300.24412939,0.00014406,2]
[423560523,1780224644000,-304.42468323,0.00014465,2]
[423560522,1780224644000,-161.46371667,0.00014406,2]
[423560527,1780224644000,-355.62910515,0.00014465,2]
[423560539,1780224644000,-363.14257505,0.00014467,2]
[423560538,1780224644000,-353.44151918,0.00014467,2]
[423560537,1780224644000,-304.2765998,0.00014467,2]
[423560516,1780224644000,-383.56003159,0.00014388,2]
[423560535,1780224644000,-331.22918054,0.00014467,2]
[423560536,1780224644000,-366.37477341,0.00014467,2]
[423560530,1780224644000,-353.41168285,0.00014465,2]
[423560528,1780224644000,-1627.51632149,0.00014465,2]
[423560534,1780224644000,-302.94515984,0.00014465,2]
[423560533,1780224644000,-366.73447865,0.00014465,2]
[423560531,1780224644000,-325.38268811,0.00014465,2]
[423560532,1780224644000,-373.5903855,0.00014465,2]
[423560540,1780224644000,-333.96363789,0.00014467,2]
[423560544,1780224644000,-151.0,0.0001452,2]
[423560541,1780224644000,-354.42551671,0.00014467,2]
[423560543,1780224644000,-821.76,0.0001452,2]
[423560542,1780224644000,-177.139567,0.00014467,2]
[423560480,1780224644000,-152.0,0.00013741,7]
[423560529,1780224644000,-450.77484529,0.00014465,2]
[423560519,1780224644000,-362.52409348,0.00014388,2]
[423560526,1780224644000,-1029.83983365,0.00014465,2]
[423560508,1780224644000,-151.0,0.000142,2]
[423560483,1780224644000,-204.83369677,0.00013766,2]
[423560514,1780224644000,-555.56,0.00014246,2]
[423560485,1780224644000,-514.91991683,0.00013766,2]
[423560492,1780224644000,-183.36723933,0.00013766,2]
[423560497,1780224644000,-176.72075959,0.00013768,2]
[423560494,1780224644000,-165.61459027,0.00013768,2]
[423560489,1780224644000,-176.70584142,0.00013766,2]
[423560488,1780224644000,-225.38742265,0.00013766,2]
[423560499,1780224644000,-166.98181894,0.00013768,2]
[423560490,1780224644000,-162.69134406,0.00013766,2]
[423560498,1780224644000,-181.57128752,0.00013768,2]
[423560487,1780224644000,-813.75816074,0.00013766,2]
[423560495,1780224644000,-183.18738671,0.00013768,2]
[423560491,1780224644000,-186.79519275,0.00013766,2]
[423560496,1780224644000,-152.1382999,0.00013768,2]
[423560507,1780224644000,-151.0,0.000142,2]
[423560500,1780224644000,-177.21275835,0.00013768,2]
[423560501,1780224644000,-151.0,0.000138,2]
[423560502,1780224644000,-151.0,0.000138,2]
[423560504,1780224644000,-151.0,0.000139,2]
[423560505,1780224644000,-821.69,0.00013972,2]
[423560511,1780224644000,-1000.0,0.0001424,2]
[423560503,1780224644000,-151.0,0.000138,2]
[423560512,1780224644000,-1000.0,0.0001424,2]
[423560513,1780224644000,-821.69,0.00014246,2]
[423560506,1780224644000,-555.56,0.00013972,2]
[423560493,1780224644000,-151.47257992,0.00013766,2]
[423560510,1780224644000,-236.381,0.0001423,2]
[423560509,1780224644000,-151.0,0.000142,2]
[423560558,1780224645000,-151.0,0.000148,2]
[423560560,1780224645000,-575.34004738,0.00014852,2]
[423560575,1780224645000,-151.21098954,0.00014932,2]
[423560555,1780224645000,-185.0,0.00014782,2]
[423560561,1780224645000,-454.90747042,0.00014852,2]
[423560568,1780224645000,-322.92743334,0.00014871,2]
[423560571,1780224645000,-456.63702484,0.00014871,2]
[423560569,1780224645000,-225.84579659,0.00014871,2]
[423560570,1780224645000,-162.5981733,0.00014871,2]
[423560572,1780224645000,-1544.75975048,0.00014932,2]
[423560573,1780224645000,-153.22520931,0.00014932,2]
[423560559,1780224645000,-59379.5453661,0.00014825,2]
[423560567,1780224645000,-232.83293814,0.00014871,2]
[423560557,1780224645000,-192.0,0.00014795,3]
[423560547,1780224645000,-151.0,0.0001452,2]
[423560563,1780224645000,-206.00034337,0.00014852,2]
[423560576,1780224645000,-533.44365772,0.00014932,2]
[423560546,1780224645000,-151.0,0.0001452,2]
[423560552,1780224645000,-1414.0,0.00014782,2]
[423560551,1780224645000,-408.07491933,0.000147,2]
[423560545,1780224645000,-179.779885,0.0001452,2]
[423560548,1780224645000,-151.0,0.000146,2]
[423560556,1780224645000,-151.0,0.00014782,2]
[423560549,1780224645000,-151.0,0.000146,2]
[423560554,1780224645000,-1836.0,0.00014782,2]
[423560565,1780224645000,-551.58268794,0.00014871,2]
[423560564,1780224645000,-543.78614022,0.00014852,2]
[423560553,1780224645000,-444.0,0.00014782,2]
[423560566,1780224645000,-450.36619408,0.00014871,2]
[423560562,1780224645000,-557.20085737,0.00014852,2]
[423560550,1780224645000,-151.0,0.000146,2]
[423560579,1780224645000,-201.8901178,0.00014932,2]
[423560574,1780224645000,-161.85743192,0.00014932,2]